bitfinex-derivatives/quotes_BTCF0:USTF0_20250315
["timestamp","ask_amount","ask_price","bid_price","bid_amount"]
[1742029600743,0.15741569,83840.0,83839.0,0.46258017]
[1742029601348,0.15741569,83840.0,83839.0,0.34330637]
[1742029601648,0.15741569,83840.0,83839.0,0.31040637]
[1742029601857,0.15741569,83840.0,83839.0,0.83040637]
[1742029602041,0.09777889,83840.0,83839.0,0.94968017]
[1742029602240,0.21705129,83840.0,83839.0,0.94968017]
[1742029602449,0.21705129,83840.0,83839.0,0.98228017]
[1742029602639,0.18505129,83840.0,83839.0,0.98228017]
[1742029602839,0.15415129,83840.0,83839.0,0.98228017]
[1742029605351,0.00417889,83840.0,83839.0,0.98228017]
[1742029611251,0.00417889,83840.0,83839.0,1.27228017]
[1742029611455,0.0313,83851.0,83850.0,0.1192581]
[1742029611647,0.0313,83851.0,83850.0,1.0065581]
[1742029612550,0.0636,83854.0,83853.0,0.1192539]
[1742029612742,0.00017889,83859.0,83857.0,0.1192482]
[1742029612942,0.00017889,83859.0,83857.0,0.9192482]
[1742029613147,0.00017889,83859.0,83857.0,0.9814482]
[1742029617350,0.03448946,83858.0,83857.0,0.9814482]
[1742029617856,0.03448946,83858.0,83857.0,0.99037898]
[1742029618243,0.00178946,83858.0,83857.0,0.99037898]
[1742029618951,0.0324,83866.0,83863.0,0.0596198]
[1742029619256,0.0326,83869.0,83868.0,0.1192326]
[1742029619450,0.0326,83869.0,83868.0,0.8792326]
[1742029619451,0.0653,83869.0,83868.0,0.8792326]
[1742029620161,0.0653,83869.0,83868.0,0.89727713]
[1742029620458,0.1845311,83869.0,83868.0,0.89727713]
[1742029624359,0.1845311,83869.0,83868.0,0.26804453]
[1742029624563,0.7593367,83869.0,83868.0,0.26804453]
[1742029629879,0.7593367,83869.0,83868.0,0.25]
[1742029632183,0.1192425,83861.0,83860.0,0.00017889]
[1742029632486,0.6940481,83861.0,83860.0,0.01017889]
[1742029632684,0.7871481,83861.0,83860.0,0.01017889]
[1742029632884,0.1788864,83851.0,83850.0,0.1192571]
[1742029633086,0.1788864,83851.0,83850.0,0.3592581]
[1742029633280,0.1788864,83851.0,83850.0,0.40753026]
[1742029633477,0.2719864,83851.0,83850.0,0.41646072]
[1742029634393,0.2719864,83851.0,83850.0,0.41846072]
[1742029635089,0.2719864,83851.0,83850.0,0.41946072]
[1742029635274,0.0931,83851.0,83850.0,0.99106072]
[1742029635479,0.0317,83851.0,83850.0,0.99106072]
[1742029635680,0.0596247,83857.0,83854.0,0.1192496]
[1742029635879,0.0596247,83857.0,83856.0,0.1192496]
[1742029636080,0.0596247,83857.0,83856.0,0.6092496]
[1742029636287,0.0596247,83857.0,83856.0,0.6400496]
[1742029636288,0.0922247,83857.0,83856.0,0.6400496]
[1742029636792,0.0922247,83857.0,83856.0,0.3900496]
[1742029637091,0.1227247,83857.0,83856.0,0.4215496]
[1742029641382,0.1227247,83857.0,83856.0,0.9715496]
[1742029641690,0.0901247,83857.0,83856.0,0.7015496]
[1742029642092,0.0596247,83857.0,83856.0,0.7015496]
[1742029642285,0.0596247,83857.0,83856.0,0.6115496]
[1742029642895,0.00017889,83859.0,83858.0,0.1192468]
[1742029643190,0.11942419,83859.0,83858.0,0.9092468]
[1742029643388,0.11942419,83859.0,83858.0,0.9721468]
[1742029643788,0.00017889,83859.0,83858.0,0.9721468]
[1742029644394,0.11942419,83859.0,83858.0,0.9721468]
[1742029644596,0.00017889,83859.0,83858.0,0.9721468]
[1742029644794,0.0596217,83861.0,83860.0,0.1788623]
[1742029644996,0.0596217,83861.0,83860.0,0.9288623]
[1742029645592,0.0596217,83861.0,83860.0,0.9603623]
[1742029646786,0.0928217,83861.0,83860.0,0.9603623]
[1742029647185,0.1244217,83861.0,83860.0,0.9603623]
[1742029650002,0.1192348,83867.0,83866.0,0.1192354]
[1742029650300,0.1192348,83867.0,83866.0,0.3992354]
[1742029650301,0.5117348,83867.0,83866.0,0.3992354]
[1742029650891,0.1509348,83867.0,83866.0,0.3992354]
[1742029651292,0.1836348,83867.0,83866.0,0.3992354]
[1742029651692,0.3028766,83867.0,83866.0,0.3992354]
[1742029652102,0.3028766,83867.0,83866.0,0.4299354]
[1742029652499,0.3028766,83867.0,83866.0,0.44627694]
[1742029654605,0.5168822,83867.0,83866.0,0.44627694]
[1742029654798,0.8776822,83867.0,83866.0,0.44627694]
[1742029655395,0.8776822,83867.0,83866.0,0.47777694]
[1742029655595,0.5168822,83867.0,83866.0,0.47777694]
[1742029655905,0.8776822,83867.0,83866.0,0.47777694]
[1742029661609,0.8776822,83867.0,83866.0,0.35854154]
[1742029664210,0.8776822,83867.0,83866.0,0.28]
[1742029664510,0.1192382,83864.0,83863.0,0.0315]
[1742029664812,0.1192382,83864.0,83863.0,0.23]
[1742029665019,0.3977438,83864.0,83863.0,0.23]
[1742029665518,0.3977438,83864.0,83863.0,0.24620659]
[1742029665914,0.3977438,83864.0,83863.0,0.27770659]
[1742029667221,0.3977438,83864.0,83863.0,0.2615]
[1742029667422,0.3977438,83864.0,83863.0,0.23]
[1742029671220,0.1192397,83863.0,83862.0,0.0333]
[1742029671415,0.3332453,83863.0,83862.0,0.0333]
[1742029671610,0.3974453,83863.0,83862.0,0.0333]
[1742029672420,0.1192468,83858.0,83857.0,0.0313]
[1742029672622,0.1192468,83858.0,83857.0,0.3113]
[1742029673124,0.1806468,83858.0,83857.0,0.3113]
[1742029673324,0.1806468,83858.0,83857.0,0.3423]
[1742029675519,0.1806468,83858.0,83857.0,0.3587947]
[1742029677725,0.3946524,83858.0,83857.0,0.3587947]
[1742029682924,0.3946524,83858.0,83857.0,0.4780429]
[1742029683125,0.3946524,83858.0,83857.0,0.3587947]
[1742029683628,0.3946524,83858.0,83857.0,0.4780429]
[1742029685224,0.1788604,83864.0,83861.0,0.0596205]
[1742029685425,0.1788604,83864.0,83863.0,0.1192397]
[1742029685629,0.1192397,83863.0,83862.0,0.0951]
[1742029685829,0.1192397,83863.0,83862.0,0.8151]
[1742029686233,0.1192397,83863.0,83862.0,0.9343411]
[1742029689430,0.0596163,83868.0,83862.0,0.8151]
[1742029689633,0.2140056,83868.0,83867.0,0.119234]
[1742029689823,0.1193505,83869.0,83868.0,0.1192326]
[1742029690024,0.1193505,83869.0,83868.0,0.4130326]
[1742029690224,0.3333561,83869.0,83868.0,0.4130326]
[1742029690426,0.3333561,83869.0,83868.0,0.2938]
[1742029690945,0.3951561,83869.0,83868.0,0.2938]
[1742029691921,0.3637561,83869.0,83868.0,0.4130326]
[1742029693937,0.3637561,83869.0,83868.0,0.1192326]
[1742029694140,0.119234,83867.0,83866.0,0.0604]
[1742029694336,0.119234,83867.0,83866.0,0.3304]
[1742029694637,0.1193514,83869.0,83867.0,0.059617]
[1742029694826,0.3332382,83868.0,83867.0,0.309751]
[1742029695227,0.1504326,83868.0,83867.0,0.339951]
[1742029695740,0.1192326,83868.0,83867.0,0.339951]
[1742029696327,0.1502326,83868.0,83867.0,0.339951]
[1742029699835,0.1825326,83868.0,83867.0,0.339951]
[1742029702237,0.1502326,83868.0,83867.0,0.339951]
[1742029704535,0.1821326,83868.0,83867.0,0.339951]
[1742029705343,0.1821326,83868.0,83867.0,0.370651]
[1742029706628,0.1502326,83868.0,83867.0,0.370651]
[1742029707233,0.1821326,83868.0,83867.0,0.370651]
[1742029710247,0.1821326,83868.0,83867.0,0.339751]
[1742029714141,0.2135326,83868.0,83867.0,0.339751]
[1742029716144,0.4275382,83868.0,83867.0,0.0307]
[1742029716344,0.178863,83863.0,83862.0,0.1788559]
[1742029716747,0.3928686,83863.0,83862.0,0.1788559]
[1742029716941,0.178863,83863.0,83862.0,0.1788559]
[1742029717251,0.3928686,83863.0,83862.0,0.1788559]
[1742029719152,0.3928686,83863.0,83862.0,0.4388559]
[1742029719654,0.3928686,83863.0,83862.0,0.5034559]
[1742029729359,0.2736261,83863.0,83862.0,0.5034559]
[1742029731157,0.3356261,83863.0,83862.0,0.5034559]
[1742029741868,0.3356261,83863.0,83862.0,0.4388559]
[1742029742072,0.3356261,83863.0,83862.0,0.1788559]
[1742029742265,0.3356261,83863.0,83862.0,0.2109559]
[1742029742665,0.3356261,83863.0,83862.0,0.2427559]
[1742029745269,0.3356261,83863.0,83862.0,0.5127559]
[1742029750777,0.3356261,83863.0,83862.0,0.3935191]
[1742029759984,0.3356261,83863.0,83862.0,0.27]
[1742029760376,0.3356261,83863.0,83862.0,0.3892411]
[1742029760784,0.3356261,83863.0,83862.0,0.4495411]
[1742029763188,0.2760056,83863.0,83862.0,0.4495411]
[1742029763589,0.1499397,83863.0,83862.0,0.9595411]
[1742029764290,0.1806397,83863.0,83862.0,0.4495411]
[1742029772981,0.3946453,83863.0,83862.0,0.4495411]
[1742029773383,0.3946453,83863.0,83862.0,0.9495411]
[1742029773590,0.3946453,83863.0,83862.0,0.4495411]
[1742029775494,0.40557327,83863.0,83862.0,0.4495411]
[1742029775696,0.40557326,83863.0,83862.0,0.4495411]
[1742029776694,0.40557326,83863.0,83862.0,0.3303]
[1742029776894,0.40557326,83863.0,83862.0,0.41226368]
[1742029777398,0.3946453,83863.0,83862.0,0.41226368]
[1742029777899,0.3946453,83863.0,83862.0,0.92226368]
[1742029778097,0.3946453,83863.0,83862.0,0.41226368]
[1742029791725,0.2754056,83863.0,83862.0,0.41226368]
[1742029792627,0.3946453,83863.0,83862.0,0.41226368]
[1742029799124,0.0307,83863.0,83862.0,0.94226368]
[1742029799427,0.0001189,83869.0,83868.0,0.1192326]
[1742029799627,0.0001189,83869.0,83868.0,0.9613326]
[1742029804721,0.0652189,83869.0,83868.0,0.9613326]
[1742029806817,0.18445,83869.0,83868.0,0.9613326]
[1742029807926,0.0652189,83869.0,83868.0,0.9613326]
[1742029809717,0.3608,83878.0,83877.0,0.1192198]
[1742029810029,0.0311,83879.0,83878.0,0.1192183]
[1742029810226,0.0311,83879.0,83878.0,0.8692183]
[1742029810521,0.3608,83886.0,83879.0,0.1192169]
[1742029810728,0.0311,83887.0,83886.0,0.119207]
[1742029811034,0.0311,83887.0,83886.0,0.942807]
[1742029811217,0.0311,83887.0,83886.0,0.976007]
[1742029812220,0.44946087,83890.0,83889.0,0.1192027]
[1742029812422,0.56806216,83890.0,83889.0,1.3100027]
[1742029812623,0.44886086,83890.0,83889.0,1.3100027]
[1742029813430,0.44886086,83890.0,83889.0,1.32473851]
[1742029813622,0.35733238,83895.0,83894.0,0.1191956]
[1742029813819,0.35733238,83895.0,83894.0,0.8691956]
[1742029814420,0.35733238,83895.0,83894.0,0.9322956]
[1742029814622,0.0307,83898.0,83897.0,0.1191913]
[1742029814826,0.0307,83898.0,83897.0,0.8491913]
[1742029815129,0.00178844,83903.0,83902.0,0.1191842]
[1742029815332,0.00178844,83903.0,83902.0,0.7191842]
[1742029815721,0.06528844,83903.0,83902.0,0.7191842]
[1742029815925,0.06528844,83903.0,83902.0,0.7836842]
[1742029816231,0.03498844,83903.0,83902.0,0.7836842]
[1742029818636,0.0301,83910.0,83909.0,0.1191743]
[1742029818835,0.0595844,83913.0,83910.0,0.0595857]
[1742029819030,0.1236836,83914.0,83911.0,0.1191715]
[1742029819031,0.183271,83912.0,83911.0,0.1191715]
[1742029819231,0.183271,83912.0,83911.0,0.4112715]
[1742029822235,0.183271,83912.0,83911.0,0.42560319]
[1742029822631,0.544071,83912.0,83911.0,0.36350319]
[1742029822841,0.7580766,83912.0,83911.0,0.36350319]
[1742029823035,0.3972766,83912.0,83911.0,0.36350319]
[1742029824734,0.3972766,83912.0,83911.0,0.24433169]
[1742029824924,0.7580766,83912.0,83911.0,0.01433169]
[1742029825125,0.7580766,83912.0,83897.0,0.12353052]
[1742029825126,0.1191771,83907.0,83906.0,0.1191784]
[1742029825637,0.1191771,83907.0,83906.0,0.3391784]
[1742029825839,0.1834771,83907.0,83906.0,0.3391784]
[1742029826839,0.1834771,83907.0,83906.0,0.35317077]
[1742029830430,0.1834771,83907.0,83906.0,0.23399237]
[1742029830838,0.1834771,83907.0,83906.0,0.35317097]
[1742029831040,0.1834771,83907.0,83906.0,0.23399237]
[1742029834739,0.1191842,83902.0,83897.0,0.00893052]
[1742029834934,0.6939898,83902.0,83897.0,0.00893052]
[1742029835241,0.7084867,83902.0,83897.0,0.01437947]
[1742029835445,0.1191899,83898.0,83897.0,0.01437947]
[1742029835645,0.1192013,83890.0,83889.0,0.01086157]
[1742029835845,0.1192013,83890.0,83889.0,0.25086157]
[1742029836049,0.1826013,83890.0,83889.0,0.25086157]
[1742029836232,0.1826013,83890.0,83889.0,0.37006427]
[1742029837257,0.1826013,83890.0,83889.0,0.38430058]
[1742029838139,0.1826013,83890.0,83889.0,0.41680058]
[1742029838338,0.1826013,83890.0,83889.0,0.44800058]
[1742029842943,0.1826013,83890.0,83889.0,0.29759788]
[1742029843145,0.3966069,83890.0,83889.0,0.26509788]
[1742029844547,0.3966069,83890.0,83889.0,0.38430058]
[1742029845347,0.3966069,83890.0,83889.0,0.0160243]
[1742029849846,0.3966069,83890.0,83889.0,0.1260243]
[1742029854861,0.3966069,83890.0,83889.0,0.1591243]
[1742029855052,0.3966069,83890.0,83889.0,0.6391243]
[1742029855252,0.3966069,83890.0,83889.0,0.278327]
[1742029856157,0.3966069,83890.0,83889.0,0.398827]
[1742029856553,0.1507013,83890.0,83889.0,0.658827]
[1742029857350,0.0315,83890.0,83889.0,0.658827]
[1742029857557,0.479997,83893.0,83892.0,0.1191984]
[1742029857764,0.119197,83893.0,83892.0,0.9399984]
[1742029857964,0.1191922,83897.0,83896.0,0.1191913]
[1742029858165,0.1191922,83897.0,83896.0,0.3591913]
[1742029858459,0.1191922,83897.0,83896.0,0.4226913]
[1742029858966,0.1191922,83897.0,83896.0,0.6526913]
[1742029859265,0.1191922,83897.0,83896.0,0.7526913]
[1742029859655,0.03227841,83898.0,83897.0,0.1191913]
[1742029859864,0.03227841,83898.0,83897.0,0.9126913]
[1742029860264,0.4203881,83908.0,83906.0,0.1191771]
[1742029860464,0.1803781,83907.0,83906.0,0.3891771]
[1742029860660,0.3943837,83907.0,83906.0,0.3891771]
[1742029863067,0.3943837,83907.0,83906.0,0.40355372]
[1742029863963,0.17815302,83927.0,83906.0,0.28437662]
[1742029864157,0.1191771,83907.0,83906.0,0.28437662]
[1742029864552,0.1191771,83907.0,83906.0,0.40355522]
[1742029864759,0.1827771,83907.0,83906.0,0.40355522]
[1742029865363,0.5435771,83907.0,83906.0,0.28437662]
[1742029865561,0.7575827,83907.0,83906.0,0.28437662]
[1742029866055,0.7575827,83907.0,83906.0,0.40355522]
[1742029866970,0.5435771,83907.0,83906.0,0.40355522]
[1742029867165,0.7575827,83907.0,83906.0,0.40355522]
[1742029867366,0.7575827,83907.0,83906.0,0.63355522]
[1742029867564,0.3935,83907.0,83906.0,0.63355522]
[1742029867963,0.5126771,83907.0,83906.0,0.63355522]
[1742029868675,0.5436771,83907.0,83906.0,0.63355522]
[1742029869472,0.5436771,83907.0,83906.0,0.66355522]
[1742029869971,0.5126771,83907.0,83906.0,0.66355522]
[1742029870974,0.5126771,83907.0,83906.0,0.46625522]
[1742029871569,0.5434771,83907.0,83906.0,0.46625522]
[1742029874271,0.7574827,83907.0,83906.0,0.31707662]
[1742029874772,0.7574827,83907.0,83906.0,0.01437662]
[1742029874962,0.1191857,83901.0,83900.0,0.1508863]
[1742029875166,0.1191857,83901.0,83900.0,0.4208863]
[1742029875368,0.1191857,83901.0,83900.0,0.4538863]
[1742029876170,0.2140857,83901.0,83900.0,0.4538863]
[1742029877666,0.2140857,83901.0,83900.0,0.46762281]
[1742029878063,0.4799771,83907.0,83906.0,0.1191786]
[1742029878266,0.4799771,83907.0,83906.0,0.3691786]
[1742029878477,0.5748056,83907.0,83906.0,0.3691786]
[1742029878671,0.6939827,83907.0,83906.0,0.4310786]
[1742029879180,0.7250827,83907.0,83906.0,0.4310786]
[1742029879574,0.7558827,83907.0,83906.0,0.4310786]
[1742029879778,0.3916,83907.0,83906.0,0.9710786]
[1742029879979,0.0308,83907.0,83906.0,0.9710786]
[1742029881672,0.1499771,83907.0,83906.0,0.9710786]
[1742029881866,0.0308,83907.0,83906.0,0.9710786]
[1742029884384,0.47596001,83922.0,83906.0,0.8519]
[1742029884385,0.36140001,83922.0,83906.0,0.8519]
[1742029884696,0.1191771,83911.0,83910.0,0.1787557]
[1742029884895,0.1191771,83911.0,83910.0,0.6987557]
[1742029885082,0.4297827,83911.0,83910.0,0.3295857]
[1742029886195,0.4297827,83911.0,83910.0,0.27]
[1742029888187,0.4297827,83911.0,83910.0,0.3891729]
[1742029889598,0.4297827,83911.0,83910.0,0.4538729]
[1742029891397,0.4297827,83911.0,83910.0,0.9638729]
[1742029891698,0.4297827,83911.0,83910.0,0.4538729]
[1742029892202,0.2157771,83911.0,83910.0,0.4538729]
[1742029894099,0.4297827,83911.0,83910.0,0.4538729]
[1742029895697,0.4297827,83911.0,83902.0,0.4203905]
[1742029895698,0.1191828,83903.0,83902.0,0.4203905]
[1742029895902,0.1191828,83903.0,83902.0,0.8222]
[1742029896090,0.1831828,83903.0,83902.0,0.3022]
[1742029896992,0.2161828,83903.0,83902.0,0.3346]
[1742029897593,0.2161828,83903.0,83902.0,0.4537842]
[1742029897902,0.2161828,83903.0,83902.0,0.9937842]
[1742029904503,0.2161828,83903.0,83902.0,0.4537842]
[1742029904705,0.2161828,83903.0,83902.0,0.3346]
[1742029905094,0.2161828,83903.0,83902.0,0.4537842]
[1742029906896,0.2161828,83903.0,83902.0,0.27]
[1742029907493,0.2161828,83903.0,83902.0,0.3343]
[1742029907891,0.7909884,83903.0,83902.0,0.27]
[1742029908103,0.1191857,83901.0,83900.0,0.01373651]
[1742029908309,0.1191871,83900.0,83899.0,0.0311]
[1742029908511,0.3957927,83900.0,83899.0,0.0311]
[1742029908805,0.1191885,83899.0,83898.0,0.00017878]
[1742029909002,0.3331941,83899.0,83898.0,0.09017878]
[1742029909208,0.3955941,83899.0,83898.0,0.09017878]
[1742029909600,0.3955941,83899.0,83898.0,0.20936868]
[1742029909900,0.3955941,83899.0,83898.0,0.24196868]
[1742029910296,0.7563941,83899.0,83898.0,0.25609924]
[1742029910601,0.7563941,83899.0,83898.0,0.00017878]
[1742029910809,0.1192013,83890.0,83889.0,0.01571234]
[1742029911008,0.6940069,83890.0,83889.0,0.27571234]
[1742029911411,0.6940069,83890.0,83889.0,0.26178803]
[1742029911610,0.7548069,83890.0,83889.0,0.00178803]
[1742029912308,0.1192055,83887.0,83886.0,0.01388832]
[1742029912513,0.3332111,83887.0,83886.0,0.24]
[1742029913125,0.3662111,83887.0,83886.0,0.24]
[1742029915517,0.3662111,83887.0,83886.0,0.2706]
[1742029917907,0.3662111,83887.0,83886.0,0.24]
[1742029918712,0.3969111,83887.0,83886.0,0.24]
[1742029923216,0.3969111,83887.0,83886.0,0.76]
[1742029923419,0.1522055,83887.0,83886.0,0.609207]
[1742029923609,0.1522055,83887.0,83886.0,0.704707]
[1742029924319,0.1522055,83887.0,83886.0,0.454707]
[1742029924512,0.1522055,83887.0,83886.0,0.724707]
[1742029925622,0.5130055,83887.0,83886.0,0.724707]
[1742029925811,0.1522055,83887.0,83886.0,0.724707]
[1742029926210,0.1522055,83887.0,83886.0,0.3045]
[1742029926417,0.1522055,83887.0,83886.0,0.423707]
[1742029926813,0.5130055,83887.0,83886.0,0.423707]
[1742029927515,0.5130055,83887.0,83886.0,0.953707]
[1742029927816,0.5130055,83887.0,83886.0,0.703707]
[1742029928222,0.3608,83894.0,83888.0,0.2383985]
[1742029928423,0.1192013,83891.0,83890.0,0.1788019]
[1742029928625,0.1192013,83891.0,83890.0,0.5125019]
[1742029928808,0.1808013,83891.0,83890.0,0.5125019]
[1742029936027,0.1808013,83891.0,83890.0,0.3337]
[1742029936623,0.3948069,83891.0,83890.0,0.3337]
[1742029937734,0.3948069,83891.0,83890.0,0.0308]
[1742029938037,0.3948069,83891.0,83890.0,0.3008]
[1742029939331,0.3948069,83891.0,83890.0,0.3326]
[1742029945830,0.3948069,83891.0,83890.0,0.3008]
[1742029947527,0.1192098,83884.0,83883.0,0.01405883]
[1742029947728,0.1192098,83884.0,83883.0,0.23]
[1742029947922,0.1496098,83884.0,83883.0,0.23]
[1742029948129,0.1496098,83884.0,83883.0,0.2625]
[1742029948638,0.1496098,83884.0,83883.0,0.27611306]
[1742029948937,0.1829098,83884.0,83883.0,0.30751306]
[1742029949837,0.1829098,83884.0,83883.0,0.42672426]
[1742029951129,0.1829098,83884.0,83883.0,0.95672426]
[1742029951733,0.0595932,83901.0,83883.0,0.83751306]
[1742029951934,0.3928136,83891.0,83890.0,0.1191984]
[1742029952236,0.3928136,83891.0,83890.0,0.3991984]
[1742029954139,0.3928136,83891.0,83890.0,0.4318984]
[1742029954340,0.3928136,83891.0,83890.0,0.4618984]
[1742029958234,0.1192098,83884.0,83877.0,0.11516]
[1742029958544,0.1192098,83884.0,83883.0,0.25]
[1742029959531,0.1192098,83884.0,83883.0,0.2827]
[1742029959739,0.1192098,83884.0,83883.0,0.4019112]
[1742029959934,0.1510098,83884.0,83883.0,0.4019112]
[1742029960139,0.1842098,83884.0,83883.0,0.4326112]
[1742029962542,0.1842098,83884.0,83883.0,0.44623786]
[1742029971453,0.1842098,83884.0,83883.0,0.68623786]
[1742029975347,0.065,83884.0,83883.0,0.92623786]
[1742029976545,0.00017878,83898.0,83883.0,0.80702666]
[1742029976744,0.0313,83889.0,83888.0,0.1192041]
[1742029976944,0.0313,83889.0,83888.0,0.9631041]
[1742029977145,0.0624,83889.0,83888.0,0.9631041]
[1742029978255,0.1816027,83889.0,83888.0,0.9631041]
[1742029981457,0.0624,83889.0,83888.0,0.9631041]
[1742029981654,0.1816027,83889.0,83888.0,0.9631041]
[1742029982152,0.1816027,83889.0,83888.0,0.4631041]
[1742029982355,0.1816027,83889.0,83888.0,0.7919041]
[1742029982958,0.0624,83889.0,83888.0,0.7919041]
[1742029985961,0.1816027,83889.0,83888.0,0.4019041]
[1742029986147,0.1816027,83889.0,83888.0,0.6519041]
[1742029986351,0.1816027,83889.0,83888.0,0.6828041]
[1742029989261,0.0624,83889.0,83888.0,0.6828041]
[1742029989466,0.1816027,83889.0,83888.0,0.6828041]
[1742029995061,0.3956083,83889.0,83888.0,0.25]
[1742029995464,0.3956083,83889.0,83888.0,0.3692041]
[1742029996664,0.3956083,83889.0,83888.0,0.25]
[1742029997965,0.3956083,83889.0,83888.0,0.3692041]
[1742029999970,0.3956083,83889.0,83888.0,0.4021041]
[1742030001471,0.3956083,83889.0,83888.0,0.9133041]
[1742030002171,0.0624,83889.0,83888.0,0.6661041]
[1742030003675,0.0624,83889.0,83888.0,1.0269041]
[1742030003880,0.11936868,83898.0,83897.0,0.1191913]
[1742030004082,0.33337428,83898.0,83897.0,0.8991913]
[1742030004471,0.33337428,83898.0,83897.0,0.7391913]
[1742030005176,0.33337428,83898.0,83897.0,0.5891913]
[1742030005377,0.11936868,83898.0,83897.0,0.5891913]
[1742030005574,0.06367878,83898.0,83897.0,0.6520913]
[1742030007086,0.18286868,83898.0,83897.0,0.6520913]
[1742030007676,0.00017878,83898.0,83897.0,0.6520913]
[1742030007876,0.11936868,83898.0,83897.0,0.6520913]
[1742030008181,0.00017878,83898.0,83897.0,0.6520913]
[1742030008381,0.18166868,83898.0,83897.0,0.6520913]
[1742030015978,0.18166868,83898.0,83897.0,0.8020913]
[1742030016185,0.21166868,83898.0,83897.0,0.8020913]
[1742030019698,0.09247878,83898.0,83897.0,0.8020913]
[1742030020998,0.06247878,83898.0,83897.0,0.8020913]
[1742030022091,0.0595832,83915.0,83909.0,0.1191743]
[1742030022290,1.26656001,83918.0,83909.0,0.8891743]
[1742030022291,0.4799729,83910.0,83909.0,0.8891743]
[1742030022490,0.6939785,83910.0,83909.0,0.8891743]
[1742030022791,0.3608,83910.0,83909.0,0.9198743]
[1742030022985,0.4799729,83910.0,83909.0,0.9198743]
[1742030023292,0.4799729,83910.0,83909.0,0.93300942]
[1742030023488,0.4799729,83910.0,83909.0,0.96610942]
[1742030023895,0.4799729,83910.0,83909.0,0.45610942]
[1742030024091,0.4799729,83910.0,83909.0,0.93610942]
[1742030024292,0.5112729,83910.0,83909.0,0.93610942]
[1742030025403,0.5422729,83910.0,83909.0,0.93610942]
[1742030026498,0.0623,83910.0,83909.0,0.69610942]
[1742030026704,0.1814729,83910.0,83909.0,0.69610942]
[1742030028000,0.3954785,83910.0,83909.0,0.66300942]
[1742030028614,0.7562785,83910.0,83909.0,0.63230942]
[1742030029113,0.7562785,83910.0,83909.0,0.69270942]
[1742030030405,0.7562785,83910.0,83909.0,0.27313512]
[1742030031915,0.1191842,83902.0,83901.0,0.11936398]
[1742030032107,0.3331898,83902.0,83901.0,0.67936398]
[1742030032310,0.4291898,83902.0,83901.0,0.71016398]
[1742030032618,0.4291898,83902.0,83901.0,0.74156398]
[1742030033420,0.4291898,83902.0,83901.0,0.75464778]
[1742030034815,0.7899898,83902.0,83901.0,0.75464778]
[1742030035014,0.7899898,83902.0,83901.0,0.41244828]
[1742030035213,0.7899898,83902.0,83901.0,0.68244828]
[1742030035422,0.7899898,83902.0,83901.0,0.71294828]
[1742030036816,0.7899898,83902.0,83901.0,0.74544828]
[1742030038221,0.4291898,83902.0,83901.0,0.00017878]
[1742030038421,0.1788033,83891.0,83889.0,0.0596012]
[1742030038723,0.0331,83890.0,83889.0,0.30243907]
[1742030038926,0.2789056,83890.0,83889.0,0.33433907]
[1742030039316,0.3981069,83890.0,83889.0,0.33433907]
[1742030039520,0.3981069,83890.0,83889.0,0.24283787]
[1742030039710,0.4286069,83890.0,83889.0,0.24283787]
[1742030040113,0.4286069,83890.0,83889.0,0.36204057]
[1742030040310,0.4286069,83890.0,83889.0,0.24283787]
[1742030041120,0.1192127,83882.0,83881.0,0.00017878]
[1742030041431,0.3332183,83882.0,83881.0,0.28017878]
[1742030041728,0.1192226,83875.0,83874.0,0.0315]
[1742030041922,0.1192226,83875.0,83874.0,0.27]
[1742030042121,0.1192311,83869.0,83868.0,0.28585223]
[1742030042325,0.6940367,83869.0,83868.0,0.28585223]
[1742030042824,0.6940367,83869.0,83868.0,0.22721134]
[1742030043025,0.1192425,83861.0,83860.0,0.00017878]
[1742030043226,0.6940481,83861.0,83860.0,0.27017878]
[1742030043724,0.7552481,83861.0,83860.0,0.27017878]
[1742030045129,0.7552481,83861.0,83860.0,0.30037878]
[1742030045514,0.7552481,83861.0,83860.0,0.41962268]
[1742030045720,0.7552481,83861.0,83860.0,0.42062268]
[1742030048229,0.7552481,83861.0,83860.0,0.93062268]
[1742030048423,0.6360056,83861.0,83860.0,0.93062268]
[1742030048623,0.6360056,83861.0,83860.0,0.42062268]
[1742030049327,0.2447056,83861.0,83860.0,0.15062268]
[1742030049532,0.2447056,83861.0,83860.0,0.35062268]
[1742030049733,0.3639481,83861.0,83860.0,0.35062268]
[1742030050233,0.3639481,83861.0,83860.0,0.38342268]
[1742030051125,0.3639481,83861.0,83860.0,0.18342268]
[1742030051321,0.3639481,83861.0,83860.0,0.17417878]
[1742030051526,0.3966481,83861.0,83860.0,0.17417878]
[1742030051833,0.3966481,83861.0,83860.0,0.29342268]
[1742030057138,0.3966481,83861.0,83860.0,0.40342268]
[1742030057637,0.2774056,83861.0,83860.0,0.40342268]
[1742030058037,0.3966481,83861.0,83860.0,0.40342268]
[1742030059533,0.3966481,83861.0,83860.0,0.00117878]
[1742030059737,0.3966481,83861.0,83860.0,0.23042268]
[1742030060139,0.3966481,83861.0,83860.0,0.26172268]
[1742030060328,0.3966481,83861.0,83860.0,0.29192268]
[1742030064031,0.3966481,83861.0,83860.0,0.17267878]
[1742030064443,0.3966481,83861.0,83860.0,0.20477878]
[1742030064636,0.3966481,83861.0,83860.0,0.32402268]
[1742030065534,0.3966481,83861.0,83860.0,0.29192268]
[1742030066236,0.3966481,83861.0,83860.0,0.17267878]
[1742030067533,0.3966481,83861.0,83860.0,0.29192268]
[1742030067746,0.3966481,83861.0,83860.0,0.39192268]
[1742030068334,0.3966481,83861.0,83860.0,0.66192268]
[1742030068530,0.3966481,83861.0,83860.0,0.39192268]
[1742030068736,0.1520353,83868.0,83867.0,0.119234]
[1742030068935,0.5724519,83868.0,83867.0,0.369234]
[1742030069140,0.4256575,83868.0,83867.0,0.369234]
[1742030069336,0.7864575,83868.0,83867.0,0.889234]
[1742030069542,0.6672222,83868.0,83867.0,0.369234]
[1742030069862,0.6682222,83868.0,83867.0,0.369234]
[1742030070039,0.6983222,83868.0,83867.0,0.401134]
[1742030070240,0.6983222,83868.0,83867.0,0.433134]
[1742030071035,0.6983222,83868.0,83867.0,0.3139]
[1742030071245,0.6983222,83868.0,83867.0,0.0639]
[1742030071838,0.6993222,83868.0,83867.0,0.0639]
[1742030076049,0.7309222,83868.0,83867.0,0.0639]
[1742030076932,0.5169166,83868.0,83867.0,0.0639]
[1742030077145,0.7309222,83868.0,83867.0,0.0639]
[1742030081147,0.0596195,83864.0,83860.0,0.00017878]
[1742030081353,0.1192411,83862.0,83861.0,0.0319]
[1742030081557,0.1192411,83862.0,83861.0,0.4320425]
[1742030081754,0.1829411,83862.0,83861.0,0.4320425]
[1742030084752,0.1829411,83862.0,83861.0,0.4330425]
[1742030088053,0.5437411,83862.0,83861.0,0.4330425]
[1742030090564,0.5437411,83862.0,83861.0,0.001]
[1742030091066,0.5437411,83862.0,83861.0,0.0341]
[1742030093162,0.5437411,83862.0,83861.0,0.0652]